fUST/lending_fUST_20250720
["ID","MTS","AMOUNT","RATE_DAILY","PERIOD"]
[373505137,1753024256619,-526.57,0.00019452,2]
[373505138,1753024256637,-460.0,0.00019452,2]
[373505139,1753024256650,-2632.32,0.00019452,2]
[373505140,1753024256664,-460.0,0.00019452,2]
[373505141,1753024256680,-1706.81,0.00019452,2]
[373505142,1753024256691,-1837.71,0.00019452,2]
[373505143,1753024256704,-460.0,0.00019452,2]
[373505144,1753024256717,-610.02,0.00019452,2]
[373505145,1753024256729,-487.17786816,0.00019452,2]
[373505146,1753024256740,-485.05091983,0.00019452,2]
[373505147,1753024256752,-460.0,0.00019452,2]
[373505148,1753024256765,-460.0,0.00019452,2]
[373505149,1753024256777,-460.0,0.00019452,2]
[373505150,1753024256789,-460.0,0.00019452,2]
[373505151,1753024256814,-505.86,0.00019452,2]
[373505152,1753024256832,-516.74,0.00019452,2]
[373505153,1753024256847,-800.41,0.00019452,2]
[373505154,1753024256861,-460.0,0.00019452,2]
[373505155,1753024256876,-151.0,0.00019452,2]
[373505156,1753024256889,-151.0,0.00019452,2]
[373505157,1753024256905,-911.32,0.00019452,2]
[373505158,1753024256920,-435.67079829,0.00019452,2]
[373505159,1753024256933,-660.01,0.00019452,2]
[373505160,1753024256947,-460.0,0.00019452,2]
[373505161,1753024256960,-460.0,0.00019452,2]
[373505162,1753024256973,-549.79,0.00019452,2]
[373505163,1753024256986,-1083.37,0.00019452,2]
[373505164,1753024256999,-1652.76,0.00019452,2]
[373505165,1753024257012,-610.94,0.00019452,2]
[373505166,1753024257025,-460.0,0.00019452,2]
[373505167,1753024257039,-500.74,0.00019452,2]
[373505168,1753024257051,-575.9,0.00019452,2]
[373505169,1753024257065,-460.0,0.00019452,2]
[373505170,1753024257077,-887.74,0.00019452,2]
[373505171,1753024257089,-460.0,0.00019452,2]
[373505172,1753024257102,-460.0,0.00019452,2]
[373505173,1753024257113,-460.0,0.00019452,2]
[373505174,1753024257126,-1920.16,0.00019452,2]
[373505175,1753024257137,-727.42,0.00019452,2]
[373505176,1753024257149,-460.0,0.00019502,2]
[373505177,1753024257161,-1500.0,0.00019512,2]
[373505178,1753024257173,-466.28,0.00019554,2]
[373505179,1753024257185,-151.0,0.00019595,2]
[373505180,1753024257196,-151.0,0.00019595,2]
[373505181,1753024257208,-151.0,0.00019595,2]
[373505182,1753024257220,-151.0,0.00019595,2]
[373505183,1753024257232,-151.0,0.00019595,2]
[373505184,1753024257244,-153.370387,0.00019595,2]
[373505185,1753024257256,-151.0,0.00019595,2]
[373505186,1753024257267,-151.54753,0.00019616,2]
[373505187,1753024257280,-151.0,0.00019616,2]
[373505188,1753024257291,-4899.29356198,0.00019659,2]
[373505189,1753024257303,-1000.0,0.00019671,2]
[373505190,1753024257314,-1000.0,0.00019671,2]
[373505191,1753024257325,-151.0,0.00019672,2]
[373505192,1753024257337,-151.0,0.00019672,2]
[373505193,1753024257349,-507.64219255,0.00019683,2]
[373505194,1753024257360,-1000.0,0.00019683,2]
[373505195,1753024257371,-1001.80415761,0.00019683,2]
[373505196,1753024257384,-1000.0,0.00019683,2]
[373505197,1753024257404,-1000.0,0.00019683,2]
[373505198,1753024257417,-500.0,0.00019683,2]
[373505199,1753024257430,-503.28821453,0.00019683,2]
[373505200,1753024257443,-1000.0,0.00019683,2]
[373505201,1753024257457,-501.90140821,0.00019683,2]
[373505202,1753024257469,-151.0,0.000197,2]
[373505203,1753024257482,-1000.0,0.00019703,2]
[373505204,1753024257495,-204.42175216,0.00019726,2]
[373505205,1753024257508,-460.0,0.00019726,2]
[373505206,1753024257519,-502.79,0.00019726,2]
[373505207,1753024257531,-491.79,0.00019726,2]
[373505208,1753024257544,-460.0,0.00019726,2]
[373505209,1753024257556,-2144.03,0.00019726,2]
[373505210,1753024257568,-460.0,0.00019726,2]
[373505211,1753024257581,-460.0,0.00019726,2]
[373505212,1753024257593,-460.0,0.00019726,2]
[373505213,1753024257604,-4843.49,0.00019726,2]
[373505214,1753024257616,-1237.85,0.00019726,2]
[373505215,1753024257630,-483.48,0.00019726,2]
[373505216,1753024257642,-460.0,0.00019726,2]
[373505217,1753024257654,-3981.81,0.00019726,2]
[373505218,1753024257667,-460.0,0.00019726,2]
[373505219,1753024257682,-460.0,0.00019726,2]
[373505220,1753024257693,-460.0,0.00019726,2]
[373505221,1753024257706,-1155.02,0.00019726,2]
[373505222,1753024257718,-581.75027151,0.00019726,2]
[373505223,1753024257731,-1417.78,0.00019726,2]
[373505224,1753024257909,-569.14,0.00019726,2]
[373505225,1753024257924,-1607.28,0.00019726,2]
[373505226,1753024257934,-460.0,0.00019726,2]
[373505227,1753024257943,-460.0,0.00019726,2]
[373505228,1753024257953,-460.0,0.00019726,2]
[373505229,1753024257963,-526.57,0.00019726,2]
[373505230,1753024257972,-460.0,0.00019726,2]
[373505231,1753024257985,-2632.32,0.00019726,2]
[373505232,1753024257994,-157.82301385,0.00019726,2]
[373505233,1753024258003,-1706.81,0.00019726,2]
[373505234,1753024258013,-1837.71,0.00019726,2]
[373505235,1753024258022,-460.0,0.00019726,2]
[373505236,1753024258032,-610.02,0.00019726,2]
[373505237,1753024258041,-539.2,0.00019726,2]
[373505238,1753024258051,-460.0,0.00019726,2]
[373505239,1753024258060,-460.0,0.00019726,2]
[373505240,1753024258069,-460.0,0.00019726,2]
[373505241,1753024258078,-460.0,0.00019726,2]
[373505242,1753024258088,-505.86,0.00019726,2]
[373505243,1753024258098,-516.74,0.00019726,2]
[373505244,1753024258107,-800.41,0.00019726,2]
[373505245,1753024258116,-460.0,0.00019726,2]
[373505246,1753024258126,-911.32,0.00019726,2]
[373505247,1753024258135,-660.01,0.00019726,2]
[373505248,1753024258144,-460.0,0.00019726,2]
[373505249,1753024258153,-273.98,0.00019726,2]
[373505250,1753024258163,-1083.37,0.00019726,2]
[373505251,1753024258172,-1652.76,0.00019726,2]
[373505252,1753024258181,-610.94,0.00019726,2]
[373505253,1753024258191,-460.0,0.00019726,2]
[373505254,1753024258201,-500.74,0.00019726,2]
[373505255,1753024258211,-575.9,0.00019726,2]
[373505256,1753024258220,-460.0,0.00019726,2]
[373505257,1753024258229,-887.74,0.00019726,2]
[373505258,1753024258238,-460.0,0.00019726,2]
[373505259,1753024258248,-476.56381978,0.00019726,2]
[373505260,1753024258257,-460.0,0.00019726,2]
[373505261,1753024258267,-1920.16,0.00019726,2]
[373505262,1753024258276,-727.42,0.00019726,2]
[373505263,1753024258286,-1000.0,0.00019729,2]
[373505264,1753024258295,-1150.0,0.00019729,2]
[373505265,1753024258304,-1000.0,0.00019729,2]
[373505266,1753024258315,-165.42282706,0.00019826,2]
[373505267,1753024258324,-1000.0,0.00019826,2]
[373505268,1753024258334,-1000.0,0.00019826,2]
[373505269,1753024258343,-1000.0,0.00019826,2]
[373505270,1753024258353,-1000.0,0.00019826,2]
[373505271,1753024258362,-1500.0,0.00019872,2]
[373505272,1753024258371,-7356.13753329,0.00019924,2]
[373505273,1753024258382,-4899.29356198,0.00019934,2]
[373505274,1753024258392,-502.79,0.0002,2]
[373505275,1753024258401,-151.61041121,0.0002,2]
[373505276,1753024258411,-491.79,0.0002,2]
[373505277,1753024258420,-460.0,0.0002,2]
[373505278,1753024258429,-2144.03,0.0002,2]
[373505279,1753024258439,-74695.0,0.0002,2]
[373505280,1753024258448,-514.77,0.0002,2]
[373505281,1753024258458,-326.29001919,0.0002,2]
[373505282,1753024258467,-460.0,0.0002,2]
[373505283,1753024258476,-4843.49,0.0002,2]
[373505284,1753024258485,-1237.85,0.0002,2]
[373505285,1753024258495,-483.48,0.0002,2]
[373505286,1753024258503,-258.514583,0.0002,2]
[373505287,1753024258513,-151.0,0.0002,2]
[373505288,1753024258522,-460.0,0.0002,2]
[373505289,1753024258531,-3981.81,0.0002,2]
[373505290,1753024258539,-497.79805885,0.0002,2]
[373505291,1753024258549,-301.33378709,0.0002,2]
[373505292,1753024258557,-460.0,0.0002,2]
[373505293,1753024258566,-400.19139532,0.0002,2]
[373505294,1753024258575,-1155.02,0.0002,2]
[373505295,1753024258584,-1417.78,0.0002,2]
[373505296,1753024258594,-569.14,0.0002,2]
[373505297,1753024258603,-1607.28,0.0002,2]
[373505298,1753024258612,-604.614474,0.0002,2]
[373505299,1753024258621,-460.0,0.0002,2]
[373505300,1753024258631,-604.614474,0.0002,2]
[373505301,1753024258640,-462.87,0.0002,2]
[373505302,1753024258649,-460.0,0.0002,2]
[373505303,1753024258659,-526.57,0.0002,2]
[373505304,1753024258671,-460.0,0.0002,2]
[373505305,1753024258681,-2632.32,0.0002,2]
[373505306,1753024258690,-1706.81,0.0002,2]
[373505307,1753024258700,-1837.71,0.0002,2]
[373505308,1753024258710,-460.0,0.0002,2]
[373505309,1753024258720,-610.02,0.0002,2]
[373505310,1753024258729,-539.2,0.0002,2]
[373505311,1753024258739,-460.0,0.0002,2]
[373505312,1753024258751,-460.0,0.0002,2]
[373505313,1753024258761,-460.0,0.0002,2]
[373505314,1753024258771,-460.0,0.0002,2]
[373505315,1753024258780,-505.86,0.0002,2]
[373505316,1753024258790,-800.41,0.0002,2]
[373505317,1753024258799,-460.0,0.0002,2]
[373505318,1753024258809,-911.32,0.0002,2]
[373505319,1753024258818,-660.01,0.0002,2]
[373505320,1753024258828,-460.0,0.0002,2]
[373505321,1753024258838,-1083.37,0.0002,2]
[373505322,1753024258847,-1652.76,0.0002,2]
[373505323,1753024258857,-217.935232,0.0002,2]
[373505324,1753024258866,-610.94,0.0002,2]
[373505325,1753024258876,-490.06568455,0.0002,2]
[373505326,1753024258885,-217.935232,0.0002,2]
[373505327,1753024258895,-500.74,0.0002,2]
[373505328,1753024258904,-575.9,0.0002,2]
[373505329,1753024258914,-460.0,0.0002,2]
[373505330,1753024258923,-887.74,0.0002,2]
[373505331,1753024258932,-460.0,0.0002,2]
[373505332,1753024258942,-4000.0,0.0002,4]
[373505333,1753024258951,-460.0,0.0002,2]
[373505334,1753024258960,-1920.16,0.0002,2]
[373505335,1753024258970,-727.42,0.0002,2]
[373505336,1753024258979,-2139.01149938,0.00020033,2]
[373505337,1753024258988,-560.0,0.0002005,2]
[373505338,1753024258997,-1519.91708283,0.00020149,2]
[373505339,1753024259007,-223.0315306,0.00020178,2]
[373505340,1753024259016,-1198.697648,0.00020187,2]
[373505341,1753024259025,-4899.29356198,0.0002021,2]
[373505342,1753024259035,-7356.13753329,0.00020217,2]
[373505343,1753024259044,-1001.81370368,0.00020219,2]
[373505344,1753024259053,-1212.66461745,0.00020231,2]
[373505345,1753024259063,-500.0,0.00020231,2]
[373505346,1753024259074,-1024.33436884,0.00020231,2]
[373505347,1753024259083,-1515.89490897,0.00020231,2]
[373505348,1753024259093,-593.45438667,0.00020251,2]
[373505349,1753024259102,-524.56,0.00020252,2]
[373505350,1753024259111,-502.79,0.00020273,2]
[373505351,1753024259120,-491.79,0.00020273,2]
[373505352,1753024259131,-460.0,0.00020273,2]
[373505353,1753024259140,-2144.03,0.00020273,2]
[373505354,1753024259149,-151.0,0.00020273,2]
[373505355,1753024259158,-151.0,0.00020273,2]
[373505356,1753024259168,-460.0,0.00020273,2]
[373505357,1753024259177,-4843.49,0.00020273,2]
[373505358,1753024259188,-1237.85,0.00020273,2]
[373505359,1753024259199,-483.48,0.00020273,2]
[373505360,1753024259208,-3981.81,0.00020273,2]
[373505361,1753024259217,-460.0,0.00020273,2]
[373505362,1753024259226,-1155.02,0.00020273,2]
[373505363,1753024259236,-1417.78,0.00020273,2]
[373505364,1753024259245,-569.14,0.00020273,2]
[373505365,1753024259254,-1607.28,0.00020273,2]
[373505366,1753024259264,-460.0,0.00020273,2]
[373505367,1753024259273,-460.0,0.00020273,2]
[373505368,1753024259282,-526.57,0.00020273,2]
[373505369,1753024259293,-480.79,0.00020273,2]
[373505370,1753024259302,-2632.32,0.00020273,2]
[373505371,1753024259311,-1706.81,0.00020273,2]
[373505372,1753024259326,-1837.71,0.00020273,2]
[373505373,1753024259335,-460.0,0.00020273,2]
[373505374,1753024259346,-610.02,0.00020273,2]
[373505375,1753024259355,-541.15424337,0.00020273,2]
[373505376,1753024259365,-539.2,0.00020273,2]
[373505377,1753024259374,-460.0,0.00020273,2]
[373505378,1753024259386,-460.0,0.00020273,2]
[373505379,1753024259395,-460.0,0.00020273,2]
[373505380,1753024259404,-505.86,0.00020273,2]
[373505381,1753024259413,-800.41,0.00020273,2]
[373505382,1753024259423,-460.0,0.00020273,2]
[373505383,1753024259435,-911.32,0.00020273,2]
[373505384,1753024259444,-660.01,0.00020273,2]
[373505385,1753024259453,-460.0,0.00020273,2]
[373505386,1753024259463,-1083.37,0.00020273,2]
[373505387,1753024259473,-1652.76,0.00020273,2]
[373505388,1753024259482,-610.94,0.00020273,2]
[373505389,1753024259492,-500.74,0.00020273,2]
[373505390,1753024259501,-575.9,0.00020273,2]
[373505391,1753024259511,-460.0,0.00020273,2]
[373505392,1753024259520,-887.74,0.00020273,2]
[373505393,1753024259530,-460.0,0.00020273,2]
[373505394,1753024259539,-460.0,0.00020273,2]
[373505395,1753024259548,-1920.16,0.00020273,2]
[373505396,1753024259558,-727.42,0.00020273,2]
[373505397,1753024259568,-7815.53966043,0.00020274,2]
[373505398,1753024259577,-1500.0,0.00020277,2]
[373505399,1753024259586,-855.09842483,0.00020277,2]
[373505400,1753024259596,-151.0,0.000203,3]
[373505401,1753024259607,-800.35007006,0.00020374,2]
[373505402,1753024259616,-507.96325211,0.00020374,2]
[373505403,1753024259627,-1500.0,0.00020374,2]
[373505404,1753024259636,-4899.29356198,0.00020486,3]
[373505405,1753024259646,-3000.0,0.000205,2]
[373505406,1753024259655,-12615.16111038,0.000205,3]
[373505407,1753024259666,-160.0,0.000205,3]
[373505408,1753024259679,-214.5637056,0.000205,3]
[373505409,1753024259689,-3000.0,0.0002051,2]
[373505410,1753024259698,-700.0,0.00020516,2]
[373505411,1753024259707,-3000.0,0.0002052,2]
[373505412,1753024259719,-7356.13753329,0.00020527,2]
[373505413,1753024259728,-3000.0,0.0002053,2]
[373505414,1753024259738,-500.0,0.00020539,2]
[373505415,1753024259749,-500.75234204,0.00020539,2]
[373505416,1753024259758,-500.47556397,0.00020539,2]
[373505417,1753024259767,-500.0,0.00020539,2]
[373505418,1753024259777,-384.13370304,0.00020539,2]
[373505419,1753024259787,-500.0,0.00020539,2]
[373505420,1753024259796,-500.0,0.00020539,2]
[373505421,1753024259805,-500.0,0.00020539,2]
[373505422,1753024259815,-500.0,0.00020539,2]
[373505423,1753024259825,-500.70846675,0.00020539,2]
[373505424,1753024259835,-500.0,0.00020539,2]
[373505425,1753024259844,-500.0,0.00020539,2]
[373505426,1753024259854,-500.0,0.00020539,2]
[373505427,1753024259864,-500.0,0.00020539,2]
[373505428,1753024259874,-3000.0,0.0002054,2]
[373505429,1753024259885,-502.79,0.00020547,2]
[373505430,1753024259896,-151.0,0.00020547,2]
[373505431,1753024259905,-491.79,0.00020547,2]
[373505432,1753024259914,-571.36,0.00020547,2]
[373505433,1753024259924,-2144.03,0.00020547,2]
[373505434,1753024259933,-460.0,0.00020547,2]
[373505435,1753024259943,-4843.49,0.00020547,2]
[373505436,1753024259952,-483.48,0.00020547,2]
[373505437,1753024259961,-1237.85,0.00020547,2]
[373505438,1753024259971,-3981.81,0.00020547,2]
[373505439,1753024259981,-151.0,0.00020547,2]
[373505440,1753024259990,-460.0,0.00020547,2]
[373505441,1753024259999,-1155.02,0.00020547,2]
[373505442,1753024260009,-258.16249,0.00020547,2]
[373505443,1753024260019,-258.16249,0.00020547,2]
[373505444,1753024260028,-1417.78,0.00020547,2]
[373505445,1753024260038,-569.14,0.00020547,2]
[373505446,1753024260047,-1607.28,0.00020547,2]
[373505447,1753024260056,-460.0,0.00020547,2]
[373505448,1753024260066,-460.0,0.00020547,2]
[373505449,1753024260075,-526.57,0.00020547,2]
[373505450,1753024260085,-2632.32,0.00020547,2]
[373505451,1753024260094,-1706.81,0.00020547,2]
[373505452,1753024260104,-1837.71,0.00020547,2]
[373505453,1753024260113,-460.0,0.00020547,2]
[373505454,1753024260123,-610.02,0.00020547,2]
[373505455,1753024260135,-539.2,0.00020547,2]
[373505456,1753024260145,-460.0,0.00020547,2]
[373505457,1753024260155,-460.0,0.00020547,2]
[373505458,1753024260164,-460.0,0.00020547,2]
[373505459,1753024260174,-505.86,0.00020547,2]
[373505460,1753024260183,-800.41,0.00020547,2]
[373505461,1753024260193,-460.0,0.00020547,2]
[373505462,1753024260203,-151.0,0.00020547,2]
[373505463,1753024260213,-151.0,0.00020547,2]
[373505464,1753024260223,-911.32,0.00020547,2]
[373505465,1753024260232,-660.01,0.00020547,2]
[373505466,1753024260242,-460.0,0.00020547,2]
[373505467,1753024260251,-1083.37,0.00020547,2]
[373505468,1753024260261,-1652.76,0.00020547,2]
[373505469,1753024260270,-610.94,0.00020547,2]
[373505470,1753024260279,-500.74,0.00020547,2]
[373505471,1753024260288,-575.9,0.00020547,2]
[373505472,1753024260298,-261.3083951,0.00020547,2]
[373505473,1753024260308,-887.74,0.00020547,2]
[373505474,1753024260317,-460.0,0.00020547,2]
[373505475,1753024260326,-460.0,0.00020547,2]
[373505476,1753024260336,-1920.16,0.00020547,2]
[373505477,1753024260346,-727.42,0.00020547,2]
[373505478,1753024260355,-3000.0,0.0002055,2]
[373505479,1753024260366,-3000.0,0.0002056,2]
[373505480,1753024260376,-3000.0,0.0002057,2]
[373505481,1753024260386,-3000.0,0.0002058,2]
[373505482,1753024260396,-3000.0,0.0002059,2]
[373505483,1753024260406,-660.0,0.00020598,2]
[373505484,1753024260415,-3000.0,0.000206,2]
[373505485,1753024260425,-476.42619115,0.000206,3]
[373505486,1753024260435,-3000.0,0.0002061,2]
[373505487,1753024260444,-3000.0,0.0002062,2]
[373505488,1753024260453,-3000.0,0.0002063,2]
[373505489,1753024260462,-3000.0,0.0002064,2]
[373505490,1753024260472,-3000.0,0.0002065,2]
[373505491,1753024260482,-151.0,0.0002065,2]
[373505492,1753024260492,-151.0,0.0002065,2]
[373505493,1753024260501,-151.0,0.0002065,2]
[373505494,1753024260511,-151.0,0.0002065,2]
[373505495,1753024260521,-151.0,0.0002065,2]
[373505496,1753024260531,-151.0,0.0002065,2]
[373505497,1753024260540,-151.0,0.0002065,2]
[373505498,1753024260550,-151.0,0.0002065,2]
[373505499,1753024260559,-151.0,0.0002065,2]
[373505500,1753024260569,-3000.0,0.0002066,2]
[373505501,1753024260578,-3000.0,0.0002067,2]
[373505502,1753024260588,-472.07520401,0.00020677,2]
[373505503,1753024260597,-3000.0,0.0002068,2]
[373505504,1753024260607,-3000.0,0.0002069,2]
[373505505,1753024260616,-7356.13753329,0.00020697,2]
[373505506,1753024260626,-3000.0,0.000207,2]
[373505507,1753024260637,-3000.0,0.0002071,2]
[373505508,1753024260647,-2139.01149938,0.00020715,2]
[373505509,1753024260656,-3000.0,0.0002072,2]
[373505510,1753024260666,-151.0,0.0002072,2]
[373505511,1753024260681,-151.0,0.0002072,2]
[373505512,1753024260691,-3000.0,0.0002073,2]
[373505513,1753024260701,-3000.0,0.0002074,2]
[373505514,1753024260711,-3000.0,0.0002075,2]
[373505515,1753024260720,-3000.0,0.0002076,2]
[373505516,1753024260730,-4899.29356198,0.00020762,3]
[373505517,1753024260740,-3000.0,0.0002077,2]
[373505518,1753024260750,-3000.0,0.0002078,2]
[373505519,1753024260760,-3000.0,0.0002079,2]
[373505520,1753024260770,-3000.0,0.000208,2]
[373505521,1753024260779,-3000.0,0.0002081,2]
[373505522,1753024260789,-3000.0,0.0002082,2]
[373505523,1753024260798,-502.79,0.00020821,2]
[373505524,1753024260929,-151.0,0.00020821,2]
[373505525,1753024260938,-491.79,0.00020821,2]
[373505526,1753024260947,-2144.03,0.00020821,2]
[373505527,1753024260957,-363.06528692,0.00020821,2]
[373505528,1753024260966,-4843.49,0.00020821,2]
[373505529,1753024260976,-483.48,0.00020821,2]
[373505530,1753024260985,-1237.85,0.00020821,2]
[373505531,1753024260995,-3981.81,0.00020821,2]
[373505532,1753024261004,-460.0,0.00020821,2]
[373505533,1753024261013,-1155.02,0.00020821,2]
[373505534,1753024261022,-1417.78,0.00020821,2]
[373505535,1753024261031,-569.14,0.00020821,2]
[373505536,1753024261041,-1607.28,0.00020821,2]
[373505537,1753024261050,-460.0,0.00020821,2]
[373505538,1753024261060,-460.0,0.00020821,2]
[373505539,1753024261070,-526.57,0.00020821,2]
[373505540,1753024261079,-2632.32,0.00020821,2]
[373505541,1753024261088,-1706.81,0.00020821,2]
[373505542,1753024261098,-1837.71,0.00020821,2]
[373505543,1753024261107,-460.0,0.00020821,2]
[373505544,1753024261116,-610.02,0.00020821,2]
[373505545,1753024261126,-539.2,0.00020821,2]
[373505546,1753024261135,-460.0,0.00020821,2]
[373505547,1753024261144,-460.0,0.00020821,2]
[373505548,1753024261154,-300.52580573,0.00020821,2]
[373505549,1753024261163,-505.86,0.00020821,2]
[373505550,1753024261173,-800.41,0.00020821,2]
[373505551,1753024261182,-460.0,0.00020821,2]
[373505552,1753024261191,-911.32,0.00020821,2]
[373505553,1753024261201,-660.01,0.00020821,2]
[373505554,1753024261210,-540.36,0.00020821,2]
[373505555,1753024261219,-1083.37,0.00020821,2]
[373505556,1753024261228,-1652.76,0.00020821,2]
[373505557,1753024261237,-610.94,0.00020821,2]
[373505558,1753024261246,-500.74,0.00020821,2]
[373505559,1753024261256,-575.9,0.00020821,2]
[373505560,1753024261265,-887.74,0.00020821,2]
[373505561,1753024261275,-460.0,0.00020821,2]
[373505562,1753024261283,-460.0,0.00020821,2]
[373505563,1753024261292,-1920.16,0.00020821,2]
[373505564,1753024261302,-727.42,0.00020821,2]
[373505565,1753024261311,-2000.0,0.00020825,2]
[373505566,1753024261321,-3000.0,0.0002083,2]
[373505567,1753024261331,-3000.0,0.0002084,2]
[373505568,1753024261341,-3000.0,0.0002085,2]
[373505569,1753024261350,-3000.0,0.0002086,2]
[373505570,1753024261359,-3000.0,0.0002087,2]
[373505571,1753024261369,-3000.0,0.0002088,2]
[373505572,1753024261378,-3000.0,0.0002089,2]
[373505573,1753024261387,-3000.0,0.000209,2]
[373505574,1753024261397,-151.0,0.000209,2]
[373505575,1753024261406,-604.614474,0.000209,2]
[373505576,1753024261416,-604.614474,0.000209,2]
[373505577,1753024261425,-217.935232,0.000209,2]
[373505578,1753024261437,-217.935232,0.000209,2]
[373505579,1753024261446,-3000.0,0.0002091,2]
[373505580,1753024261455,-3000.0,0.0002092,2]
[373505581,1753024261464,-7356.13753329,0.0002092,2]
[373505582,1753024261474,-1000.0,0.00020922,2]
[373505583,1753024261486,-3000.0,0.0002093,2]
[373505584,1753024261496,-890.5,0.00020939,2]
[373505585,1753024261507,-3000.0,0.0002094,2]
[373505586,1753024261518,-3000.0,0.0002095,2]
[373505587,1753024261530,-582.84,0.0002095,2]
[373505588,1753024261540,-3000.0,0.0002096,2]
[373505589,1753024261550,-3000.0,0.0002097,2]
[373505590,1753024261559,-3000.0,0.0002098,2]
[373505591,1753024261569,-3000.0,0.0002099,2]
[373505592,1753024261581,-647.0,0.00020996,2]
[373505593,1753024261591,-2156.0,0.00020996,2]
[373505594,1753024261601,-968.0,0.00020996,2]
[373505595,1753024261611,-151.0,0.00021,4]
[373505596,1753024261621,-3000.0,0.00021,2]
[373505597,1753024261632,-3000.0,0.0002101,2]
[373505598,1753024261641,-3000.0,0.0002102,2]
[373505599,1753024261650,-3000.0,0.0002103,2]
[373505600,1753024261660,-375.179,0.00021032,2]
[373505601,1753024261672,-417.607,0.00021032,2]
[373505602,1753024261682,-4899.29356198,0.00021038,4]
[373505603,1753024261692,-3000.0,0.0002104,2]
[373505605,1753024261701,-3000.0,0.0002105,2]
[373505606,1753024261713,-3000.0,0.0002106,2]
[373505607,1753024261722,-3000.0,0.0002107,2]
[373505608,1753024261732,-3000.0,0.0002108,2]
[373505609,1753024261742,-500.90331733,0.00021087,2]
[373505610,1753024261753,-501.18180365,0.00021087,2]
[373505611,1753024261763,-1000.0,0.00021087,2]
[373505612,1753024261773,-594.63074546,0.00021087,2]
[373505613,1753024261782,-505.04769188,0.00021087,2]
[373505614,1753024261791,-1000.0,0.00021087,2]
[373505615,1753024261802,-500.86803808,0.00021087,2]
[373505616,1753024261812,-606.86677499,0.00021087,2]
[373505617,1753024261822,-3251.277018,0.0002109,2]
[373505618,1753024261831,-151.0,0.00021095,2]
[373505619,1753024261841,-151.0,0.00021095,2]
[373505620,1753024261850,-502.79,0.00021095,2]
[373505621,1753024261860,-491.79,0.00021095,2]
[373505622,1753024261869,-351.052043,0.00021095,2]
[373505623,1753024261880,-351.052043,0.00021095,2]
[373505624,1753024261890,-2144.03,0.00021095,2]
[373505625,1753024261899,-4843.49,0.00021095,2]
[373505626,1753024261909,-483.48,0.00021095,2]
[373505627,1753024261922,-1237.85,0.00021095,2]
[373505628,1753024261933,-3981.81,0.00021095,2]
[373505629,1753024261942,-460.0,0.00021095,2]
[373505630,1753024261953,-1155.02,0.00021095,2]
[373505631,1753024261963,-1417.78,0.00021095,2]
[373505632,1753024261973,-569.14,0.00021095,2]
[373505633,1753024261983,-1607.28,0.00021095,2]
[373505634,1753024261993,-488.9923924,0.00021095,2]
[373505635,1753024262003,-460.0,0.00021095,2]
[373505636,1753024262013,-526.57,0.00021095,2]
[373505637,1753024262023,-2632.32,0.00021095,2]